Cogmind - Beta 16 @@@ ROGUE MODE // 2026.01.02 @ 16:35:33 Player: JustDragon Result: Smashed by cave-in Performance ------------- Evolutions (1) 500 Regions Visited (2) 400 Robots Destroyed (23) 115 Value Destroyed (539) 539 Prototype IDs (0) 0 Alien Tech Used (0) 0 Bonus (0) 0 TOTAL SCORE: 1554 Bonus ------- None Cogmind --------- Core Integrity 0/400 Matter 246/300 Energy 85/100 System Corruption 7% Temperature Cool (0) Movement Treading (160) Location -9/Materials Parts ------- > --- POWER (1) -------- (None) > --- PROPULSION (2) --- Light Treads > --- UTILITY (3) ------ Small Storage Unit > --- WEAPON (3) ------- Heavy Assault Rifle Grenade Launcher > --- INVENTORY (8) ---- Improved Heat Sink Plasma Cutter Peak State ------------ > --- POWER ------------ Ion Engine > --- PROPULSION ------- Light Treads Light Treads > --- UTILITY ---------- Small Storage Unit Seismic Detector Hacking Suite > --- WEAPON ----------- Beam Cannon Assault Rifle Assault Rifle > --- INVENTORY -------- Light Ion Engine Grenade Launcher [Rating: 11] Favorites ----------- Power Ion Engine Engine Ion Engine Propulsion Light Treads Treads Light Treads Utility Small Storage Unit Device Seismic Detector Storage Small Storage Unit Hackware Hacking Suite Protection Light Armor Plating Weapon Assault Rifle Energy Cannon Beam Cannon Ballistic Gun Assault Rifle Launcher Grenade Launcher Build | -11 -10 -9 ------- Run | Yrd Mat Mat Slots Evolved 2 | . . 2 Power . | . . . Propulsion . | . . . Utility 1 | . . 1 Weapon 1 | . . 1 Parts Attached 19 | 6 1 12 Power 3 | 1 . 2 Engine 3 | 1 . 2 Core . | . . . Reactor . | . . . Propulsion 5 | 2 . 3 Treads 5 | 2 . 3 Leg . | . . . Wheel . | . . . Hover . | . . . Flight . | . . . Utility 4 | 1 1 2 Device 1 | . 1 . Storage 1 | 1 . . Processor . | . . . Hackware 1 | . . 1 Protection 1 | . . 1 Artifact . | . . . Weapon 7 | 2 . 5 Energy Gun . | . . . Energy Cannon 1 | . . 1 Ballistic Gun 5 | 2 . 3 Ballistic Cannon . | . . . Launcher 1 | . . 1 Special Weapon . | . . . Impact Weapon . | . . . Slashing Weapon . | . . . Piercing Weapon . | . . . Special Melee Weapon . | . . . Unidentified Prototypes . | . . . Parts Lost 15 | . . 15 Power 3 | . . 3 Propulsion 4 | . . 4 Utility 3 | . . 3 Weapon 5 | . . 5 Highest Loss Streak 5 | . . 5 To Critical Strikes 1 | . . 1 Average Backups 2 | . 2 3 Power . | . 1 . Propulsion . | . . 1 Utility . | . . . Weapon . | . 1 . Tool/Special . | . . . Unused Backups 1 | . . 1 Power . | . . . Propulsion . | . . . Utility 1 | . . 1 Weapon . | . . . Tool/Special . | . . . Average Slot Usage (%) 84 | . 98 72 Engine 10 | . 14 7 Treads 20 | . 28 15 Device 6 | . 12 1 Storage 12 | . 14 11 Hackware 4 | . . 7 Protection 1 | . . 1 Energy Cannon 5 | . . 9 Ballistic Gun 21 | . 28 16 Peak Build Rating 11 | 6 7 11 Average Rating 5 | 1 6 8 On Entrance 4 | . 6 7 Avg Prop Armor Cover (%) . | . . . Naked Turns . | . . . Heaviest Build 18 | 14 15 18 Greatest Support 40 | 40 40 40 Greatest Overweight (x) 4 | . . 4 Average Overweight (x) . | . . . Largest Inventory Capacity 8 | 8 8 8 Average Capacity 7 | 5 8 8 Most Carried 7 | 5 3 7 Average Carried 2 | . 2 3 Final Capacity 8 | 8 8 8 Final Carried 3 | 1 3 2 Class Distribution -------------------- 73% | Mutant 13% | Gunner 11% | Scavenger-Gunner Dominant Class ---------------- Mutant | -10/Materials Gunner | -9/Materials Resources | -11 -10 -9 ----------- Run | Yrd Mat Mat Matter Collected 577 | 171 104 302 Remotely . | . . . Salvage Created 856 | . 135 721 Parts 59 | . 9 50 Haulers Intercepted . | . . . Recyclers Shooed . | . . . Parts Field Recycled . | . . . Retrieved Matter . | . . . Parts Self-Destructed . | . . . Prevented . | . . . Parts Restored . | . . . Kills | -11 -10 -9 ------- Run | Yrd Mat Mat Combat Hostiles Destroyed 16 | . 4 12 Guns 9 | . 4 5 Cannons 6 | . . 6 AOE 1 | . . 1 Classes Destroyed 9 | . 3 6 Worker 1 | . . 1 Tunneler 1 | . . 1 Recycler 3 | . . 3 Operator 1 | . . 1 Watcher 1 | . 1 . Swarmer 6 | . 2 4 Grunt 6 | . 2 4 Brawler 1 | . . 1 Sentry 3 | . . 3 Best Kill Streak 10 | . 3 10 Combat Bots Only 7 | . 2 7 Max Kills in Single Turn 2 | . 1 2 Gunslinging . | . . . Exploded 1 | . . 1 Melee . | . . . Uniques/NPCs Destroyed . | . . . Combat | -11 -10 -9 -------- Run | Yrd Mat Mat Hostile Shots Fired 159 | . 44 115 Missed 39 | . 9 30 Hits 120 | . 35 85 Melee 2 | . . 2 Projectile 118 | . 35 83 AOE 2 | . . 2 Critical Strikes 2 | . 1 1 Damage Taken 1948 | . 401 1547 Core 488 | . 66 422 Absorbed by Shields . | . . . Core Remaining (%) 86 | 100 73 . Volleys Fired 63 | . 18 45 Largest 3 | . 2 3 Hottest 100 | . 40 100 Shots Fired 117 | . 36 81 Gun 78 | . 36 42 Cannon 36 | . . 36 Launcher 3 | . . 3 Special . | . . . Kinetic 78 | . 36 42 Thermal 36 | . . 36 Explosive 3 | . . 3 Electromagnetic . | . . . Robot Hit Streak 11 | . 11 9 Robot Miss Streak 7 | . 3 7 Penetration Max . | . . . Secondary Targets . | . . . Shots Hit Robots 74 | . 23 51 Core Hits 36 | . 8 28 Critical Kills . | . . . Critical Parts Destroyed 1 | . . 1 Critical Strikes 1 | . . 1 Destroy 1 | . . 1 Melee Attacks . | . . . Impact . | . . . Slashing . | . . . Piercing . | . . . Sneak Attacks . | . . . Combat Hostiles . | . . . Follow-up Attacks . | . . . Damage Inflicted 1345 | . 274 1071 Guns 569 | . 274 295 Cannons 438 | . . 438 Explosions 338 | . . 338 Melee . | . . . Ramming . | . . . Kinetic 569 | . 274 295 Thermal 646 | . . 646 Explosive 130 | . . 130 Electromagnetic . | . . . Impact . | . . . Slashing . | . . . Piercing . | . . . Highest Corruption 4 | . . 4 Average Corruption 3 | . . 3 Corruption Purged . | . . . Corruption Blocked . | . . . Effects 8 | . . 8 Message Errors 1 | . . 1 Matter Fused 3 | . . 3 Energy Discharges 2 | . . 2 Data Loss (minor) 2 | . . 2 Overload Shots . | . . . Overflow Damage 38 | . . 38 Projectiles 12 | . . 12 Explosions 26 | . . 26 Melee . | . . . Knockbacks . | . . . Impact . | . . . Kinetic . | . . . Secondary . | . . . Self-Inflicted Damage 82 | . . 82 Shots 3 | . . 3 Rammed . | . . . Targets Rammed . | . . . Kicked . | . . . Crushed . | . . . Highest Temperature 148 | . 20 148 Average Temperature 50 | . 5 52 Received Heat Transfer 471 | . 186 285 Siege Activations . | . . . Martial Activations . | . . . Shielding Activations . | . . . Robots Disrupted . | . . . Combat Hostiles . | . . . Robots Corrupted . | . . . Combat Hostiles . | . . . Parts Fried . | . . . Impact Corruptions . | . . . Robots Melted . | . . . Combat Hostiles . | . . . Parts Melted 2 | . . 2 Heat Transferred 1125 | . . 1125 Parts Sabotaged . | . . . Parts Stolen . | . . . Parts Stripped . | . . . Power Chain Reactions . | . . . Alert | -11 -10 -9 ------- Run | Yrd Mat Mat Maximum Alert Level . | . . . Low Security (%) 100 | 100 100 100 Level 1 . | . . . Level 2 . | . . . Level 3 . | . . . Level 4 . | . . . Level 5 . | . . . High Security . | . . . Max Security . | . . . Peak Influence 174 | . 47 174 Initial 2 | . . 2 Average 33 | . 9 84 Influence Increases 550 | . 109 441 Destroy 0b10 Robot/C 320 | . 80 240 Destroy 0b10 Robot/NC 35 | . 5 30 Destroy Leader 92 | . 22 70 Successful Hack 14 | . 2 12 Disable Machine 30 | . . 30 Destroy Structure 29 | . . 29 Lose Combat Pursuer 30 | . . 30 Influence Decreases 450 | . 102 348 Entered New Map 5 | . . 5 Time Decay 303 | . 102 201 Lost Part 142 | . . 142 Squads Dispatched 1 | . . 1 Investigation 1 | . . 1 Extermination . | . . . Reinforcement . | . . . Assault . | . . . Garrison . | . . . Intercept . | . . . Searches Triggered . | . . . Construction Impeded . | . . . Haulers Reinforced . | . . . Active Scanning Responses . | . . . Cargo Convoy Interrupts . | . . . Stealth | -11 -10 -9 --------- Run | Yrd Mat Mat Distress Signals 2 | . 1 1 Communications Jammed . | . . . Distress Signals . | . . . Times Spotted 28 | . 11 17 Peak Tracking Total 5 | . 5 4 Tactical Retreats 2 | . . 2 Traps | -11 -10 -9 ------- Run | Yrd Mat Mat Traps Triggered . | . . . Indirectly . | . . . Trap Hack Attempts . | . . . Triggered . | . . . Disarmed . | . . . Reprogrammed . | . . . Reused . | . . . Traps Extracted . | . . . Installed . | . . . Triggered . | . . . Machines | -11 -10 -9 ---------- Run | Yrd Mat Mat Machines Disabled 2 | . . 2 Max in Single Turn 2 | . . 2 Machines Repaired . | . . . Machines Dismantled . | . . . Machines Sabotaged . | . . . Overloaded Fab Kills . | . . . Hacking | -11 -10 -9 --------- Run | Yrd Mat Mat Machines Accessed 3 | . 1 2 Terminals 2 | . 1 1 Fabricators . | . . . Repair Stations . | . . . Recycling Units . | . . . Scanalyzers 1 | . . 1 Garrison Access . | . . . Total Hacks 5 | . 1 4 Successful 5 | . 1 4 Failed . | . . . Catastrophic . | . . . Database Lockouts . | . . . Manual . | . . . Terminals 2 | . 1 1 Fabricators . | . . . Repair Stations . | . . . Recycling Units . | . . . Scanalyzers 3 | . . 3 Garrison Access . | . . . Terminal Hacks 2 | . 1 1 Record 1 | . 1 . Branch Access Points 1 | . . 1 Fabricator Hacks . | . . . Repair Station Hacks . | . . . Recycling Unit Hacks . | . . . Scanalyzer 3 | . . 3 Retrieve Study 3 | . . 3 Garrison Access Hacks . | . . . Unauthorized Hacks . | . . . Terminals . | . . . Fabricators . | . . . Repair Stations . | . . . Recycling Units . | . . . Scanalyzers . | . . . Garrison Access . | . . . Data Cores Recovered 1 | . . 1 Used 1 | . . 1 Hacking Detections 1 | . . 1 Full Trace Events 1 | . . 1 Feedback Events . | . . . Feedback Blocked . | . . . Robot Schematics Acquired . | . . . Robots Built . | . . . Authchips . | . . . Time . | . . . Total Robot Build Rating . | . . . Part Schematics Acquired . | . . . Parts Built . | . . . Authchips . | . . . Time . | . . . Total Part Build Rating . | . . . Part Studies Acquired 3 | . . 3 Parts Repaired . | . . . Time . | . . . Parts Recycled . | . . . Recycled Matter . | . . . Retrieved Matter . | . . . Retrieved Components . | . . . Parts Scanalyzed . | . . . Part Schematics Acquired . | . . . Parts Damaged . | . . . Bothacking | -11 -10 -9 ------------ Run | Yrd Mat Mat Used RIF Installer . | . . . Robots Hacked . | . . . Non-combat . | . . . Combat . | . . . Robot Hacks Applied . | . . . Relay Couplers Released . | . . . Fabnet Peak Effective % . | . . . Robots Rewired . | . . . Allies Hacked . | . . . Hacks Repelled . | . . . Allies | -11 -10 -9 -------- Run | Yrd Mat Mat Total Allies . | . . . Largest Group . | . . . Highest-Rated Group . | . . . Highest-Rated Ally . | . . . Total Orders . | . . . Ally Attacks . | . . . Total Damage . | . . . Kills . | . . . Allies Corrupted . | . . . Allies Melted . | . . . Intel | -11 -10 -9 ------- Run | Yrd Mat Mat Active Infowar (turns) 386 | . 329 57 Seismic 386 | . 329 57 Robot Analysis Total . | . . . Derelict Logs Recovered . | . . . Drone Launches . | . . . Drone Recoveries . | . . . Exploration | -11 -10 -9 ------------- Run | Yrd Mat Mat Turns Passed 1232 | 422 359 451 Spaces Moved 464 | 83 188 193 Core 36 | 33 . 3 Treads 428 | 50 188 190 Legs . | . . . Wheels . | . . . Hover . | . . . Flight . | . . . Fastest Speed 50 | 50 160 150 Average Speed 152 | 116 160 160 Slowest Speed 250 | 160 160 250 Overloaded Moves . | . . . Propulsion Burnouts . | . . . Robots Hopped . | . . . Potential Cave-ins . | . . . Cave-ins Triggered 1 | . . 1 Exploration Rate (%) 18 | 7 28 20 Regions Visited 2 Branch Regions . Pre-discovered Areas . | . . . Known Exits Taken . | . . . Unknown Exits Taken 2 | 1 1 . Scrap Searched . | . . . Spaces Dug . | . . . Terrain Destroyed 46 | . . 46 Melee . | . . . Projectile . | . . . AOE 46 | . . 46 Terrain Rammed . | . . . Walls Destroyed . | . . . Machines Disabled . | . . . Actions | -11 -10 -9 --------- Run | Yrd Mat Mat Total 887 | 409 210 268 Wait 322 | 314 1 7 Move 462 | 82 187 193 Hop . | . . . Pick Up 21 | 7 3 11 Fast Attach . | . . . Attach 19 | 6 1 12 Detach . | . . . Swap . | . . . Drop . | . . . Fire 63 | . 18 45 Melee . | . . . Ram . | . . . Kick . | . . . Crush . | . . . Escape Stasis . | . . . Rewire . | . . . Trap . | . . . Miscellaneous . | . . . Route ------- -11/Scrapyard -10/Materials -9/Materials (discovered 1 exit: Min) History --------- Turn | Location | Event 320 | -11/Scrapyard | Discovered new exit (range 16) 423 | -11/Scrapyard | Entered Materials 440 | -10/Materials | Build established: Mutant 751 | -10/Materials | Discovered new exit (range 14) 782 | -10/Materials | Entered another Materials area 782 | -9/Materials | Evolved 2 slots: Utility x1, Weapon x1 818 | -9/Materials | Identified exit to Mines 1050 | -9/Materials | Lost 3 parts (1p1u1w) 1062 | -9/Materials | Destroyed 7 combat bots 1188 | -9/Materials | Core integrity fell below 50% 1227 | -9/Materials | Lost 5 parts (1p1n3w) 1234 | -9/Materials | Crushed by falling debris 1234 | -9/Materials | Smashed by cave-in Last Messages --------------- 01213_ Acquired Plasma Cutter. 01214_ U-05 Engineer lays Concrete. 01215_ U-05 Engineer builds a Wall. 01219_ U-05 Engineer lays Concrete. 01221_ K-01 Serf collects debris. 01221_ U-05 Engineer lays Concrete. 01223_ U-05 Engineer builds a Wall. 01224_ K-01 Serf collects debris. 01227_ U-05 Engineer lays Concrete. 01228_ System corrupted: Energy discharge (-39). 01228_ K-01 Serf collects debris. 01228_ U-05 Engineer lays Concrete. 01229_ R-06 Scavenger destroyed. 01229_ K-01 Serf destroyed. 01229_ U-05 Engineer lays Concrete. 01234_ The unstable cave ceiling collapses. 01234_ Crushed by falling debris. [Achievement: Unlikely Earthworm] 01234_ Lgt. Treads+ destroyed. 01234_ System corrupted by crushing effect (+3). Map ----- +----------------------------------------------------+ | ?????????????????????????????????????????????????? | | ??????????????????????? ???????????????????????? | | ?????????????????????? ???????????????????????? | | ?????????????????????? ??????????????????? ^??? | | ?????????????????????? ??????????????????# """ | | ??????????????????????# ??????????????????# "T" | | ??????????????????????# ?#####+#####????### | | ??????????????????????# ?# T #????# # | | ??????????????????????# ## """ #????# # | | ??????????????????????# ## """ #????# # | | ??????????????????????# ## """ #???## # | | ??????????????????????# ## #???# # | | ??????????????????????# ## #???# | | ??????????????????????# ## #????# # | | ??????????????????????# ## #????# | | ??????????????????????# ###+############# | | ??????????????????????# *%[ | | ??????????????????????# ! | | ??????????????????????# = | | ?????????????????????#### ;##+#################""" | | ????????????????????## u![ ##??????????## | | ????????????????????# =* u ;#???????????# " | | ????????????????###### == = ;#???????????# " | | ??????????????? Y%* #???????????# | | ????????????????????# = #???????????# | | ????????????????????# @ #???????????# | | ????????????????????# # = = #???????????### | | ??????????????????????# # ##?????????????? | | ??????????????????????# #; #?????????????? | | ??????????????????????# #;;; #?????????????? | | ??????????????????????# ## #####?????????????? | | ??????????????????????# ?#######?????????????????? | | ??????????????????????#??????????????????????????? | | ?????????????????????????????????????????????????? | | ?????????????????????????????????????????????????? | | ?????????????????????????????????????????????????? | | ?????????????????????????????????????????????????? | | ?????????????????????????????????????????????????? | | ?????????????????????????????????????????????????? | | ?????????????????????????????????????????????????? | | ?????????????????????????????????????????????????? | | ?????????????????????????????????????????????????? | | ????????????????????????????????????>????????????? | | ?????????????????????????????????????????????????? | | ?????????????????????????????????????????????????? | | ?????????????????????????????????????????????????? | | ?????????????????????????????????????????????????? | | ?????????????????????????????????????????????????? | | ?????????????????????????????????????????????????? | | ?????????????????????????????????????????????????? | +----------------------------------------------------+ Best States ------------- Heat Dissipation 28 Energy Generation 12 Energy Capacity 265 Matter Stores 300 Matter Capacity 300 Sight Range 16 Terrain Scan Density 10 Armor Coverage 150 Evasion (%) 50 Recoil Reduction 2 Offensive Hacking 10 Item Schematics ----------------- None Robot Schematics ------------------ None Fabricated ------------ Nothing Repaired ---------- Nothing Studied --------- Beam Cannon | -9/Materials | Hacked Lgt. Assault Rifle | -9/Materials | Hacked Lgt. Treads | -9/Materials | Hacked Alien Tech Used ----------------- None Achievements -------------- Item+ Resistances Are Futile Unlikely Earthworm Challenges ------------ None Game ------ Seed ArchitectLegPlating Manual? 0 Play Time 00:12:11 Cumulative 3.1 hours Start 2026.01.02 @ 16:24:55 End 2026.01.02 @ 16:35:33 Sessions 1 Manual Loads 0 Difficulty Rogue Special Mode None Game No. 14 Rogue 14 Adventurer 0 Explorer 0 Win Type - Total 0 Types 0/0/0/0/0/0/0/0/0/0 Lore% 3 Gallery% 6 Achievement% 6 Wizard Run 0 Options --------- Layout 0 ASCII 0 Keyboard 1 Movement Arrows Keybinds 0 Fullscreen 2 Font 24/Smallcaps Map View 76x56 Zoom Use 10% Tactical HUD 1 Map Filters NONE Filters NONE Steam 1 RUN: b171a7da-047f-41b5-9890-b78bbbf7d618